[Event "American Cup Elimination 2023"]
[Site "Saint Louis"]
[Date "2023.03.23"]
[Round "4.3"]
[White "Aronian, Levon"]
[Black "So, Wesley"]
[Result "0-1"]
[ECO "C67"]
[WhiteElo "2745"]
[BlackElo "2761"]
[Annotator "TA"]
[PlyCount "60"]
[EventDate "2023.03.15"]
[EventType "k.o."]
[EventCountry "USA"]
[SourceTitle "playchess.com"]
[Source "ChessBase"]
[SourceQuality "1"]
[TimeControl "600+5"]

{[%evp 19,60,27,15,-82,-89,-91,-97,-85,-62,-103,-97,-127,-131,-193,-194,-167,-203,-181,-182,-315,-314,-411,-360,-735,-716,-796,-720,-833,-615,-779,-781,-741,-739,-781,-770,-773,-768,-761,-741,-1221,-1197,-1290,-1170]} 1. e4 {[%emt 0:00:01]} e5 {[%emt 0:00:01]} 2. Nf3 {[%emt 0:00:01]} Nc6 {[%emt 0:00:01]} 3. Bb5 {[%emt 0:00:03]} Nf6 {[%emt 0:00:01][%cal Bg8f6,Bf6e4,Be4d6,Bd6f5,Bf5d4,Bd4c2,Bc2b4,Bb4a2][%mdl 32]} 4. O-O {[%emt 0:00:03]} Nxe4 {[%emt 0:00:01]} 5. d4 {[%emt 0:00:01]} Nd6 {[%emt 0:00:01]} 6. Bxc6 {[%emt 0:00:01]} dxc6 {[%emt 0:00:01]} 7. dxe5 {[%emt 0:00:02]} Nf5 {[%emt 0:00:01]} 8. Qxd8+ {[%emt 0:00:02]} Kxd8 {[%emt 0:00:02]} 9. Nc3 {[%emt 0:00:03] 9.h3 is the modern continuation.} Ke8 {[%emt 0:00:03]} (9... Bd7 10. b3 Kc8 11. Bb2 h6 12. h3 b6 13. Rad1 Ne7 14. Ne2 Ng6 15. Ne1 h5 16. Nd3 a5 17. a4 Be7 18. Rfe1 Nf8 19. Ndf4 Bg5 20. e6 Nxe6 21. Nxe6 Bxe6 22. Bxg7 {½-½ Aronian,L (2772)-So,W (2760) Tata Steel India rapid 2019 (7)}) 10. h3 {[%emt 0:00:02]} Be6 {[%emt 0:00:12]} 11. Ng5 {[%emt 0:00:23] [#] C67: Ruy Lopez: Berlin Defence: 4 0-0 Nxe4.} (11. g4 $11 Ne7 12. Nd4) 11... Nd4 $1 $17 {[%emt 0:00:26]} 12. Nxe6 {[%emt 0:01:17]} fxe6 {[%emt 0:00:02]} 13. Bg5 {[%emt 0:00:00] [#] Black is better.} Nxc2 $146 {[%emt 0:01:04]} ({Predecessor:} 13... h6 14. Rad1 Nxc2 15. Bh4 Nb4 16. f4 Be7 17. Bf2 Rf8 18. g3 Rd8 19. Ne4 b6 {0-1 Huang,R (2292)-Xiang,Z (2313) CHN-ch rapid 2019 (5)}) 14. Rad1 {[%emt 0:00:05]} Nb4 {[%emt 0:00:03]} 15. Ne4 {[%emt 0:01:32]} Nxa2 {[%emt 0:02:25]} 16. g4 {[%emt 0:01:28]} (16. Be3 $17 h6 17. Nc5 Bxc5 18. Bxc5) 16... Nb4 $19 {[%emt 0:00:08]} 17. f4 {[%emt 0:00:02]} h6 {[%emt 0:00:40]} 18. Bh4 {[%emt 0:00:01]} Nd5 {[%emt 0:00:01] [#] ...Ne3 is the strong threat.} 19. f5 {[%emt 0:03:10]} (19. Rf3 $142) 19... Ne3 {[%emt 0:00:11][%csl LRd1,LRf1]} 20. fxe6 {[%emt 0:00:01][%cal Of1f8]} Nxd1 {[%emt 0:00:01]} 21. Rf7 $2 {[%emt 0:02:59]} (21. Rxd1 Be7 22. Nf6+ gxf6 23. exf6) 21... Rc8 {[%emt 0:02:28] Black is clearly winning.} 22. Bf6 {[%emt 0:00:30]} Rg8 {[%emt 0:00:08]} (22... gxf6 $2 {leads to mate.} 23. Nxf6+ Kd8 24. Rd7#) 23. g5 Ne3 {[%emt 0:00:30]} (23... gxf6 $2 24. Nxf6+ Kd8 25. Rd7#) 24. g6 {[%emt 0:00:09]} Nd5 {[%emt 0:00:07]} (24... gxf6 $2 {is a self mate.} 25. Nxf6+ Kd8 26. Rd7#) 25. Bh4 {[%emt 0:00:04]} Be7 {[%emt 0:00:29]} 26. Bxe7 {[%emt 0:00:07]} Nxe7 {[%emt 0:00:01]} 27. Nd6+ {[%emt 0:00:06]} cxd6 {[%emt 0:00:02]} 28. exd6 {[%emt 0:00:00]} Nxg6 {[%emt 0:00:07]} 29. h4 {[%emt 0:00:02]} Rb8 {[%emt 0:01:49]} ({And not} 29... Nxh4 30. Re7+ Kf8 31. Rf7+ Ke8 32. Re7+ Kf8 33. Rf7+ Ke8 $11) 30. h5 {[%emt 0:00:10]} Nf8 {[%emt 0:00:02] Weighted Error Value: White=0.98/Black=0.24 (precise)} 0-1

[Event "American Cup Elimination 2023"]
[Site "Saint Louis"]
[Date "2023.03.23"]
[Round "4.4"]
[White "So, Wesley"]
[Black "Aronian, Levon"]
[Result "1/2-1/2"]
[ECO "B06"]
[WhiteElo "2761"]
[BlackElo "2745"]
[Annotator "TA"]
[PlyCount "93"]
[EventDate "2023.03.15"]
[EventType "k.o."]
[EventCountry "USA"]
[SourceTitle "playchess.com"]
[Source "ChessBase"]
[SourceQuality "1"]
[TimeControl "600+5"]

{[%evp 9,93,39,53,46,41,23,43,18,17,24,34,0,23,22,47,23,38,34,27,29,39,5,16,11,13,8,37,2,11,0,0,0,0,0,0,0,15,6,5,0,0,0,0,0,0,0,92,16,23,0,15,0,0,0,0,0,0,0,0,0,0,0,0,0,0,0,0,0,0,0,0,0,0,0,0,0,0,0,0,0,0,0,0,0,0,0]} 1. d4 {[%emt 0:00:04]} g6 {[%emt 0:00:01]} 2. e4 {[%emt 0:00:04]} Bg7 {[%emt 0:00:01]} 3. Nf3 {[%emt 0:00:03]} d6 {[%emt 0:00:01]} 4. Bc4 {[%emt 0:00:02]} a6 {[%emt 0:00:12]} 5. O-O {[%emt 0:00:33]} e6 {[%emt 0:00:14]} 6. a4 {[%emt 0:00:18]} b6 {[%emt 0:00:06]} 7. Qe2 {[%emt 0:00:13]} Nd7 {[%emt 0:00:08]} 8. Nbd2 {[%emt 0:00:50] White is slightly better.} Bb7 {[%emt 0:00:09]} 9. Re1 {[%emt 0:00:10]} Ngf6 {[%emt 0:00:15]} 10. h3 {[%emt 0:00:16]} d5 {[%emt 0:00:35]} 11. exd5 {[%emt 0:01:43]} Nxd5 {[%emt 0:00:01]} 12. Ne4 {[%emt 0:00:01]} h6 {[%emt 0:00:42]} 13. Bxd5 {[%emt 0:00:41]} Bxd5 {[%emt 0:00:02]} 14. c4 {[%emt 0:00:01]} Bb7 {[%emt 0:00:14]} 15. Bf4 {[%emt 0:00:11][%cal Od4d5]} O-O {[%emt 0:00:14]} 16. Rad1 {[%emt 0:00:07]} Rc8 {[%emt 0:01:06]} 17. Ne5 {[%emt 0:00:42]} g5 {[%emt 0:01:27]} 18. Bh2 {[%emt 0:00:21]} f5 {[%emt 0:00:24][%cal Bf7f5,Bf5f4][%mdl 32]} 19. Nc3 {[%emt 0:00:20][%cal Oc4c5]} f4 $1 {[%emt 0:00:01]} 20. Nxd7 {[%emt 0:01:45]} Qxd7 {[%emt 0:00:02]} 21. Qxe6+ {[%emt 0:00:01]} Qxe6 {[%emt 0:00:01]} 22. Rxe6 {[%emt 0:00:00]} Rce8 {[%emt 0:00:01]} 23. Rxe8 {[%emt 0:00:18]} Rxe8 {[%emt 0:00:01]} 24. Kf1 {[%emt 0:00:01]} Bc8 {[%emt 0:00:25]} 25. f3 {[%emt 0:00:23]} Be6 {[%emt 0:00:02]} 26. b3 {[%emt 0:00:13]} Bf5 {[%emt 0:01:53] And now ...Bc2 would win.} 27. Ne4 $1 {[%emt 0:00:01]} b5 {[%emt 0:00:01]} (27... Bxe4 $11 {remains equal.} 28. fxe4 Rxe4) 28. axb5 {[%emt 0:00:20]} (28. cxb5 $16 axb5 29. a5) 28... axb5 $11 {[%emt 0:00:01]} 29. Bg1 {[%emt 0:00:03]} Ra8 {[%emt 0:00:45] The position is equal.} 30. d5 {[%emt 0:00:08]} Ra3 {[%emt 0:00:10]} 31. cxb5 {[%emt 0:00:03]} Rxb3 {[%emt 0:00:01]} 32. Bd4 {[%emt 0:00:21]} Rxb5 {[%emt 0:02:43]} 33. Bxg7 {[%emt 0:00:12]} Kxg7 {[%emt 0:00:01][%mdl 4096] Endgame KRB-KRN} 34. d6 {[%emt 0:00:02]} cxd6 {[%emt 0:00:02]} 35. Nxd6 {[%emt 0:00:01]} Re5 {[%emt 0:00:02]} 36. Nxf5+ {[%emt 0:00:02]} Rxf5 {[%emt 0:00:01] KR-KR} 37. h4 {[%emt 0:00:25]} gxh4 {[%emt 0:00:05]} 38. Kg1 {[%emt 0:00:01]} h3 {[%emt 0:00:11]} 39. gxh3 {[%emt 0:00:01]} Kf6 {[%emt 0:00:05]} 40. h4 {[%emt 0:00:08]} Rh5 {[%emt 0:00:12]} 41. Kg2 {[%emt 0:00:02]} Re5 {[%emt 0:00:24]} 42. Rd6+ {[%emt 0:00:05]} Re6 {[%emt 0:00:05]} 43. Rd5 {[%emt 0:00:14]} Re5 {[%emt 0:00:10]} 44. Rd6+ {[%emt 0:00:01]} Re6 {[%emt 0:00:01]} 45. Rd5 {[%emt 0:00:01]} Re8 {[%emt 0:00:12]} 46. Rd6+ {[%emt 0:00:04]} Re6 {[%emt 0:00:06]} 47. Rd5 {[%emt 0:00:06] Weighted Error Value: White=0.09 (flawless) /Black=0.10 (very precise)} 1/2-1/2